bitfinex/quotes_SOLUSD_20251031
["timestamp","ask_amount","ask_price","bid_price","bid_amount"]
[1761949802170,0.69,187.58,187.55,33.122699]
[1761949802370,2.65674609,187.58,187.55,33.122699]
[1761949802792,0.69,187.57,187.55,33.122699]
[1761949803476,1.96674609,187.56,187.55,33.122699]
[1761949803704,2.65674609,187.56,187.55,33.122699]
[1761949808208,23.24874609,187.56,187.55,33.122699]
[1761949808514,33.03757378,187.56,187.55,33.122699]
[1761949808716,37.01195702,187.56,187.55,33.122699]
[1761949809021,50.21056859,187.56,187.55,33.122699]
[1761949809809,42.34358423,187.56,187.55,33.122699]
[1761949810718,37.01195702,187.56,187.55,33.122699]
[1761949811097,33.03757378,187.56,187.55,33.122699]
[1761949811304,34.14898727,187.56,187.55,33.122699]
[1761949811803,0.69,187.58,187.55,41.53277007]
[1761949812010,0.69,187.62,187.57,3.07815958]
[1761949812312,0.69,187.61,187.57,3.07815958]
[1761949812519,0.69,187.61,187.56,3.07815958]
[1761949813019,0.69,187.61,187.57,3.07815958]
[1761949813609,0.69,187.61,187.56,3.07815958]
[1761949814005,0.69,187.61,187.56,8.40960975]
[1761949817214,0.69,187.61,187.57,3.07815958]
[1761949817825,3.07815958,187.6,187.55,94.922699]
[1761949818037,3.07815958,187.59,187.55,94.922699]
[1761949818398,0.69,187.58,187.55,94.922699]
[1761949818597,0.69,187.58,187.55,33.122699]
[1761949819322,3.76815958,187.58,187.55,33.122699]
[1761949819706,0.69,187.57,187.55,33.122699]
[1761949825208,0.69,187.57,187.55,38.45460189]
[1761949826328,0.7,187.6,187.55,41.53276147]
[1761949826631,0.7,187.59,187.56,3.07815958]
[1761949827221,0.7,187.59,187.56,8.40976879]
[1761949827832,0.7,187.59,187.56,5.33160921]
[1761949831718,3.98692337,187.58,187.56,5.33160921]
[1761949831904,0.7,187.59,187.56,8.40976879]
[1761949832109,3.98705083,187.58,187.56,8.40976879]
[1761949832330,0.7,187.59,187.56,8.40976879]
[1761949832520,0.7,187.6,187.57,3.07815958]
[1761949832718,3.98838673,187.59,187.57,3.07815958]
[1761949832905,0.7,187.6,187.57,3.07815958]
[1761949833105,3.98838596,187.59,187.56,18.66067724]
[1761949833323,0.7,187.62,187.58,3.07815958]
[1761949833526,3.98970634,187.61,187.58,3.07815958]
[1761949833728,3.98970634,187.6,187.58,3.07815958]
[1761949834032,0.7,187.61,187.59,5.33077456]
[1761949834233,3.98985756,187.6,187.59,5.33077456]
[1761949836830,33.45898727,187.65,187.59,8.40893414]
[1761949837132,0.7,187.63,187.59,8.40893414]
[1761949837315,3.99055327,187.62,187.59,8.40893414]
[1761949837516,3.99055327,187.61,187.6,3.07815958]
[1761949837711,0.7,187.65,187.6,3.07815958]
[1761949837928,4.69045734,187.64,187.62,3.07815958]
[1761949838131,3.99045734,187.63,187.59,18.65771096]
[1761949838330,10.32779524,187.66,187.62,3.07815958]
[1761949838530,14.18471674,187.65,187.59,80.45771096]
[1761949838717,10.19569668,187.65,187.59,80.45771096]
[1761949839319,10.19569668,187.65,187.59,107.11158376]
[1761949839619,10.19569668,187.65,187.64,3.07815958]
[1761949841041,10.89569668,187.65,187.63,3.07815958]
[1761949841224,10.89569668,187.65,187.63,8.40775302]
[1761949841431,10.89569668,187.65,187.63,5.32959344]
[1761949842529,10.19569668,187.65,187.64,3.07815958]
[1761949843241,10.19569668,187.65,187.64,8.40751366]
[1761949851138,10.19569668,187.65,187.64,11.48567324]
[1761949851837,10.19569668,187.65,187.64,8.40751366]
[1761949852158,10.19569668,187.65,187.64,11.48567324]
[1761949852333,0.2,187.66,187.65,61.8]
[1761949852528,0.2,187.68,187.65,86.60806442]
[1761949852722,0.2,187.68,187.67,23.67015958]
[1761949854434,0.2,187.68,187.67,28.99866173]
[1761949855151,0.2,187.68,187.67,8.40666173]
[1761949856353,0.2,187.68,187.67,70.20666173]
[1761949856556,0.88,187.68,187.67,5.32850215]
[1761949858264,0.88,187.68,187.66,3.07815958]
[1761949858467,0.68,187.67,187.66,3.07815958]
[1761949858667,0.88,187.68,187.66,3.07815958]
[1761949858847,0.88,187.68,187.67,3.07815958]
[1761949859541,0.2,187.68,187.67,3.07815958]
[1761949860152,0.2,187.68,187.67,8.40666173]
[1761949860943,0.88,187.68,187.67,3.07815958]
[1761949861370,0.88,187.68,187.67,8.40666173]
[1761949862265,0.88,187.68,187.67,61.8]
[1761949862467,0.88,187.68,187.64,8.40744118]
[1761949862699,0.68,187.67,187.64,8.40744118]
[1761949863180,0.68,187.67,187.59,75.12687617]
[1761949863374,3.75815958,187.67,187.61,3.07815958]
[1761949863560,0.68,187.67,187.64,3.07815958]
[1761949863883,0.68,187.66,187.64,3.07815958]
[1761949864244,0.68,187.66,187.63,8.40758237]
[1761949864973,0.68,187.66,187.64,3.07815958]
[1761949866566,0.68,187.66,187.61,18.65504285]
[1761949866874,0.68,187.66,187.64,3.07815958]
[1761949867554,0.2,187.68,187.65,3.07815958]
[1761949867755,0.2,187.68,187.67,3.07815958]
[1761949867976,0.2,187.68,187.66,3.07815958]
[1761949868272,0.88,187.68,187.66,3.07815958]
[1761949868780,0.68,187.67,187.66,8.40687841]
[1761949869690,0.2,187.68,187.66,8.40687841]
[1761949869850,0.88,187.68,187.67,3.07815958]
[1761949870859,0.88,187.68,187.67,8.40666173]
[1761949871469,0.88,187.68,187.67,5.32850215]
[1761949872263,0.88,187.68,187.66,3.07815958]
[1761949872578,0.88,187.68,187.62,5.32985354]
[1761949872579,3.75815958,187.67,187.62,5.32985354]
[1761949872951,3.75815958,187.67,187.61,3.07815958]
[1761949872952,0.68,187.66,187.61,8.40831933]
[1761949873352,0.68,187.66,187.61,7.29771708]
[1761949873574,1.96755733,187.64,187.59,5.33067041]
[1761949873874,1.96755733,187.64,187.59,1.96755733]
[1761949874064,0.68,187.63,187.59,1.96755733]
[1761949874477,2.64755733,187.63,187.58,69.09836391]
[1761949874680,2.64755733,187.63,187.58,67.13096526]
[1761949874981,0.68,187.62,187.58,69.09852259]
[1761949875477,0.68,187.62,187.59,1.96755733]
[1761949878797,0.68,187.62,187.58,1.96755733]
[1761949879155,0.68,187.62,187.57,1.96755733]
[1761949880895,0.68,187.62,187.57,7.29870489]
[1761949881591,0.68,187.62,187.6,1.96755733]
[1761949882088,1.96755733,187.66,187.6,1.96755733]
[1761949882089,0.69,187.65,187.61,1.96755733]
[1761949882293,0.2,187.68,187.64,1.96755733]
[1761949882294,0.69,187.67,187.64,1.96755733]
[1761949882791,0.69,187.67,187.64,7.29670149]
[1761949883305,0.69,187.67,187.66,1.96755733]
[1761949883978,0.2,187.68,187.66,1.96755733]
[1761949884185,0.2,187.68,187.67,1.96755733]
[1761949884773,0.2,187.68,187.67,7.29605948]
[1761949887296,0.2,187.68,187.67,69.09605948]
[1761949888484,0.2,187.68,187.67,99.47688717]
[1761949889475,10.43649158,187.72,187.71,22.55955733]
[1761949889681,10.43649158,187.72,187.71,27.88692401]
[1761949890797,0.2,187.75,187.71,99.4757517]
[1761949890998,0.2,187.75,187.74,30.42978665]
[1761949891687,0.2,187.75,187.74,40.21861434]
[1761949891883,0.2,187.75,187.74,45.54512973]
[1761949894199,0.2,187.75,187.74,25.91851539]
[1761949894391,0.2,187.75,187.74,27.88607272]
[1761949895401,0.2,187.75,187.74,35.75630204]
[1761949897303,0.2,187.75,187.74,97.55630204]
[1761949898729,0.2,187.75,187.74,67.12651539]
[1761949898902,0.87,187.75,187.74,69.09407272]
[1761949899693,0.87,187.75,187.74,67.12651539]
[1761949899898,0.87,187.75,187.74,69.09407272]
[1761949900787,0.87,187.75,187.74,63.76755733]
[1761949902482,0.87,187.75,187.74,69.09407272]
[1761949903593,0.87,187.75,187.74,63.76755733]
[1761949903994,0.87,187.75,187.72,20.592]
[1761949903995,0.87,187.75,187.72,61.8]
[1761949904193,0.67,187.74,187.72,61.8]
[1761949908010,1.96755733,187.73,187.69,61.8]
[1761949908208,2.63755733,187.74,187.69,69.09545722]
[1761949908403,0.67,187.73,187.69,63.76755733]
[1761949908604,0.67,187.73,187.69,61.8]
[1761949909415,11.20032092,187.73,187.69,61.8]
[1761949909599,2.63755733,187.73,187.68,1.96755733]
[1761949909792,0.67,187.72,187.68,1.96755733]
[1761949910193,11.21131616,187.72,187.68,1.96755733]
[1761949910393,11.21131616,187.72,187.69,1.96755733]
[1761949910608,0.67,187.71,187.69,1.96755733]
[1761949913800,0.67,187.71,187.68,1.96755733]
[1761949914724,0.67,187.71,187.68,7.29565709]
[1761949914929,0.67,187.71,187.68,69.09565709]
[1761949918338,0.67,187.71,187.69,1.96755733]
[1761949918926,0.67,187.71,187.68,69.09565709]
[1761949919320,0.67,187.71,187.68,61.8]
[1761949919544,0.67,187.71,187.68,63.76755733]
[1761949920521,2.63755733,187.71,187.68,61.8]
[1761949920736,2.63755733,187.71,187.66,67.12876834]
[1761949920926,0.72,187.7,187.65,12.12544827]
[1761949921260,2.68755733,187.7,187.65,10.15789094]
[1761949921630,0.72,187.69,187.65,10.15789094]
[1761949922140,2.68755733,187.69,187.65,10.15789094]
[1761949922539,0.72,187.68,187.65,10.15789094]
[1761949924147,0.72,187.68,187.65,15.48690446]
[1761949924350,0.72,187.68,187.65,17.45446179]
[1761949925041,0.72,187.68,187.65,10.15789094]
[1761949925248,2.68755733,187.68,187.65,10.15789094]
[1761949925661,0.72,187.67,187.65,10.15789094]
[1761949926962,2.68755733,187.67,187.65,10.15789094]
[1761949927129,0.72,187.67,187.65,10.15789094]
[1761949927328,0.72,187.66,187.65,10.15789094]
[1761949928537,0.72,187.71,187.65,25.32474766]
[1761949928836,0.72,187.71,187.7,1.96755733]
[1761949929825,10.54131616,187.72,187.7,7.29520783]
[1761949930059,10.54131616,187.72,187.71,1.96755733]
[1761949931336,10.54131616,187.72,187.71,7.29492401]
[1761949935329,10.54131616,187.72,187.71,70.19777228]
[1761949936151,11.20131616,187.72,187.71,61.8]
[1761949940059,10.54131616,187.72,187.71,70.19777228]
[1761949942945,10.54131616,187.72,187.71,79.98659997]
[1761949945688,0.2,187.75,187.72,9.78882769]
[1761949945850,0.2,187.75,187.74,6.1408112]
[1761949946054,0.2,187.75,187.74,15.92963889]
[1761949946964,0.2,187.75,187.74,21.25615428]
[1761949950044,0.2,187.75,187.74,83.05615428]
[1761949950246,0.2,187.75,187.74,79.98574868]
[1761949951049,0.87,187.75,187.74,67.12651539]
[1761949951247,11.26498725,187.75,187.74,61.8]
[1761949951655,11.26498725,187.75,187.7,8.39797877]
[1761949951852,0.67,187.74,187.7,8.39797877]
[1761949952676,0.67,187.74,187.71,3.0704056]
[1761949953972,0.67,187.74,187.71,8.39768042]
[1761949954160,0.67,187.74,187.72,3.0704056]
[1761949956375,3.7404056,187.74,187.68,61.8]
[1761949956669,0.67,187.74,187.7,3.0704056]
[1761949956873,0.67,187.73,187.7,3.0704056]
[1761949957950,7.71524935,187.73,187.67,3.0704056]
[1761949958281,3.7404056,187.73,187.67,3.0704056]
[1761949958459,7.71455301,187.72,187.67,3.0704056]
[1761949958647,3.7404056,187.72,187.67,3.0704056]
[1761949958845,0.67,187.71,187.67,3.0704056]
[1761949959856,0.67,187.71,187.67,8.39887737]
[1761949962781,0.67,187.71,187.67,3.0704056]
[1761949964268,0.67,187.71,187.67,8.3988766]
[1761949967572,0.67,187.71,187.67,70.1988766]
[1761949967968,0.67,187.71,187.69,3.0704056]
[1761949968387,0.67,187.71,187.7,3.0704056]
[1761949970188,0.67,187.71,187.69,3.0704056]
[1761949972879,0.67,187.73,187.7,3.0704056]
[1761949973205,11.26498725,187.75,187.72,3.0704056]
[1761949973496,11.26498725,187.75,187.74,3.0704056]
[1761949974683,10.59498725,187.75,187.74,8.39692099]
[1761949976196,11.30498725,187.75,187.74,8.39692099]
[1761949977501,11.30498725,187.75,187.74,3.0704056]
[1761949977877,10.59498725,187.75,187.74,3.0704056]
[1761949978081,10.59498725,187.75,187.74,8.39692099]
[1761949979381,10.59498725,187.75,187.74,11.46732659]
[1761949981422,10.59498725,187.75,187.74,21.25615428]
[1761949984782,11.30498725,187.75,187.74,8.39692099]
[1761949985200,11.30498725,187.75,187.74,70.19692099]
[1761949985405,10.59498725,187.75,187.74,70.19692099]
[1761949988408,10.59498725,187.75,187.74,83.05615428]
[1761949988612,0.2,187.78,187.77,30.38082769]
[1761949988901,0.2,187.82,187.78,9.78882769]
[1761949989101,0.2,187.82,187.81,3.0704056]
[1761949989302,0.2,187.82,187.81,64.8704056]
[1761949990009,0.2,187.82,187.81,70.19493571]
[1761949991312,0.2,187.82,187.81,79.9837634]
[1761949991902,0.2,187.82,187.81,70.19493571]
[1761949992209,0.2,187.82,187.81,79.9837634]
[1761949992799,0.91,187.82,187.8,3.0704056]
[1761949993112,0.91,187.82,187.79,64.8704056]
[1761949993294,0.71,187.81,187.78,3.0704056]
[1761949993494,0.71,187.81,187.76,67.12573049]
[1761949993495,0.71,187.81,187.77,3.0704056]
[1761949993693,0.2,187.82,187.76,5.32573049]
[1761949993694,0.2,187.82,187.8,3.0704056]
[1761949993892,0.2,187.82,187.76,18.64060053]
[1761949993893,0.2,187.82,187.81,3.0704056]
[1761949994093,0.91,187.82,187.81,3.0704056]
[1761949997518,0.91,187.82,187.81,1.96327625]
[1761949998220,0.91,187.82,187.79,1.96327625]
[1761949998395,0.71,187.81,187.79,1.96327625]
[1761949999598,0.71,187.81,187.78,1.96327625]
[1761949999805,0.71,187.81,187.78,63.76327625]
[1761950001503,0.71,187.81,187.78,69.08858942]
[1761950001703,0.71,187.81,187.79,1.96327625]
[1761950004723,0.71,187.81,187.78,63.76327625]
[1761950006124,0.71,187.81,187.78,69.08850931]
[1761950007127,0.71,187.81,187.79,1.96327625]
[1761950011352,0.71,187.81,187.78,63.76327625]
[1761950011827,0.71,187.81,187.79,1.96327625]
[1761950012017,0.71,187.81,187.78,63.76327625]
[1761950012820,0.71,187.81,187.78,69.08863828]
[1761950013012,0.71,187.81,187.79,1.96327625]
[1761950013606,0.71,187.81,187.79,7.28820436]
[1761950016234,0.67,187.81,187.8,1.96327625]
[1761950016530,0.67,187.81,187.8,63.76327625]
[1761950016742,0.67,187.81,187.8,61.8]
[1761950022940,0.2,187.82,187.8,69.08808988]
[1761950023112,0.2,187.82,187.81,1.96327625]
[1761950024422,0.2,187.82,187.81,7.28780636]
[1761950025041,0.87,187.82,187.8,61.8]
[1761950025432,0.67,187.81,187.8,61.8]
[1761950025948,0.67,187.81,187.8,67.12475473]
[1761950026136,0.87,187.82,187.8,67.12475473]
[1761950026337,0.67,187.81,187.8,67.12475473]
[1761950026730,0.67,187.81,187.8,69.08803098]
[1761950029036,0.2,187.82,187.81,29.97881068]
[1761950029236,0.2,187.85,187.82,9.78882769]
[1761950029438,0.2,187.85,187.84,1.96327625]
[1761950029830,0.2,187.85,187.84,7.28695597]
[1761950030031,0.2,187.85,187.84,17.07578366]
[1761950030253,0.2,187.85,187.84,78.87578366]
[1761950033352,0.2,187.85,187.84,69.08695597]
[1761950033542,0.87,187.85,187.84,69.08695597]
[1761950033860,0.2,187.85,187.84,69.08695597]
[1761950038863,0.2,187.85,187.84,67.12367972]
[1761950039062,0.2,187.85,187.84,69.08695597]
[1761950041860,0.2,187.85,187.84,78.87578366]
[1761950042362,0.2,187.85,187.84,89.2493854]
[1761950042558,0.86,187.85,187.84,79.46055771]
[1761950042765,0.2,187.85,187.84,69.08695597]
[1761950043146,0.2,187.85,187.84,78.87578366]
[1761950043547,0.2,187.85,187.84,89.2493854]
[1761950043971,0.86,187.85,187.84,69.08695597]
[1761950044169,0.86,187.85,187.84,67.12367972]
[1761950044353,0.2,187.85,187.84,69.08695597]
[1761950045148,0.86,187.85,187.84,69.08695597]
[1761950045679,0.86,187.85,187.84,67.12367972]
[1761950045979,0.86,187.85,187.84,69.08695597]
[1761950046669,0.2,187.85,187.84,78.87578366]
[1761950049671,10.37360174,187.86,187.85,71.38882769]
[1761950049871,10.37360174,187.86,187.85,73.35210394]
[1761950051153,10.37360174,187.86,187.85,78.67550026]
[1761950057079,11.03360174,187.86,187.85,68.88667257]
[1761950057398,11.03360174,187.86,187.85,61.6]
[1761950057675,11.03360174,187.86,187.85,64.66611011]
[1761950057851,11.03360174,187.86,187.85,69.98950643]
[1761950059074,11.03360174,187.86,187.85,61.6]
[1761950061684,11.03360174,187.86,187.85,66.92339632]
[1761950061902,11.03360174,187.86,187.85,69.98950643]
[1761950066082,11.03360174,187.86,187.85,61.6]
[1761950069281,11.03360174,187.86,187.85,64.66611011]
[1761950070094,11.03360174,187.86,187.85,69.98950643]
[1761950070597,10.37360174,187.86,187.85,69.98950643]
[1761950073289,0.2,187.87,187.86,9.78882769]
[1761950073477,0.2,187.87,187.86,74.4549378]
[1761950074510,0.2,187.87,187.86,79.77805075]
[1761950078988,0.2,187.91,187.87,61.4]
[1761950079195,0.89,187.91,187.9,3.06611011]
[1761950079886,0.89,187.91,187.9,64.46611011]
[1761950079887,0.2,187.91,187.9,64.46611011]
[1761950080088,0.2,187.91,187.9,94.8469378]
[1761950080888,0.2,187.91,187.9,100.16891757]
[1761950084608,0.2,187.91,187.9,90.38008988]
[1761950084799,0.2,187.91,187.9,28.98008988]
[1761950087484,0.89,187.91,187.9,61.4]
[1761950087702,0.89,187.91,187.88,66.00243454]
[1761950087921,0.69,187.9,187.88,66.00243454]
[1761950088789,0.69,187.9,187.87,60.68]
[1761950088994,4.67074486,187.9,187.87,66.00273191]
[1761950089202,0.69,187.9,187.87,66.00273191]
[1761950089402,0.69,187.89,187.87,69.06884202]
[1761950090606,0.69,187.89,187.88,3.06611011]
[1761950091202,0.69,187.89,187.88,8.38865641]
[1761950091399,0.69,187.89,187.88,5.3225463]
[1761950093211,0.69,187.89,187.87,69.06892939]
[1761950093613,0.661782,187.89,187.87,69.06892939]
[1761950096006,0.661782,187.89,187.88,8.38865641]
[1761950099516,0.661782,187.89,187.88,69.06865641]
[1761950100520,0.661782,187.89,187.88,60.68]
[1761950100816,0.661782,187.89,187.85,66.00337327]
[1761950101012,3.72789211,187.89,187.85,66.00328578]
[1761950101218,0.661782,187.89,187.85,66.00328578]
[1761950101509,0.72,187.88,187.85,66.00328578]
[1761950101711,0.72,187.88,187.85,69.06939589]
[1761950101918,0.72,187.88,187.86,3.06611011]
[1761950102218,0.72,187.88,187.87,3.06611011]
[1761950102438,0.72,187.88,187.87,8.38893972]
[1761950103211,0.72,187.88,187.87,3.06611011]
[1761950103719,0.72,187.88,187.86,8.38919159]
[1761950104921,0.72,187.88,187.85,63.74611011]
[1761950106408,0.72,187.88,187.85,69.06943226]
[1761950107602,0.72,187.88,187.85,63.74611011]
[1761950107835,0.72,187.88,187.85,69.06933386]
[1761950109432,0.72,187.88,187.85,63.74611011]
[1761950110898,0.72,187.88,187.85,60.68]
[1761950115241,0.72,187.88,187.85,66.00337368]
[1761950118523,0.72,187.88,187.85,60.68]
[1761950119842,0.72,187.88,187.85,66.00335989]
[1761950121823,4.69917741,187.88,187.85,66.00338471]
[1761950122030,0.72,187.88,187.85,66.00338471]
[1761950122234,0.66,187.87,187.85,67.96607934]
[1761950122436,3.9791321,187.9,187.86,1.96269463]
[1761950122437,0.66,187.9,187.86,1.96269463]
[1761950122737,0.66,187.89,187.87,1.96269463]
[1761950123850,0.66,187.89,187.87,7.28545601]
[1761950124522,0.66,187.89,187.87,1.96269463]
[1761950126061,0.66,187.89,187.87,62.64269463]
[1761950126640,0.2,187.91,187.87,67.96547856]
[1761950126856,3.98099185,187.9,187.88,1.96269463]
[1761950127146,0.85,187.91,187.88,1.96269463]
[1761950127325,4.63118962,187.9,187.88,1.96269463]
[1761950127524,0.65,187.9,187.88,1.96269463]
[1761950127835,0.65,187.9,187.87,67.96547856]
[1761950128424,3.98400617,187.89,187.87,67.96547856]
[1761950128632,0.65,187.9,187.87,67.96547856]
[1761950128818,3.98400617,187.89,187.87,67.96547856]
[1761950129014,0.65,187.9,187.87,60.68]
[1761950129221,4.63422434,187.89,187.87,60.68]
[1761950129437,3.98422434,187.88,187.87,60.68]
[1761950129721,4.63422434,187.88,187.87,60.68]
[1761950130332,6.59691897,187.88,187.87,60.68]
[1761950131837,6.59691897,187.88,187.84,66.00362749]
[1761950132037,4.63422434,187.87,187.84,66.00362749]
[1761950132249,3.98422434,187.86,187.84,66.00362749]
[1761950132435,0.65,187.86,187.84,66.00362749]
[1761950132635,0.65,187.85,187.84,66.00362749]
[1761950134353,0.65,187.85,187.82,60.68]
[1761950135851,3.99109123,187.84,187.82,60.68]
[1761950136034,0.65,187.85,187.82,60.68]
[1761950136234,4.6408829,187.84,187.82,66.00419467]
[1761950136436,0.65,187.84,187.82,66.00419467]
[1761950136642,0.65,187.84,187.82,60.68]
[1761950140747,3.99047226,187.83,187.82,60.68]
[1761950140938,3.99047226,187.83,187.79,66.00503302]
[1761950141139,4.64047226,187.82,187.79,67.96772765]
[1761950141335,0.65,187.82,187.79,67.96772765]
[1761950143341,0.65,187.84,187.79,68.64772765]
[1761950143542,3.98956098,187.83,187.8,1.96269463]
[1761950143857,0.65,187.84,187.8,1.96269463]
[1761950144030,3.98940756,187.83,187.8,1.96269463]
[1761950144238,0.65,187.84,187.8,1.96269463]
[1761950144547,3.98947491,187.83,187.8,1.96269463]
[1761950144737,0.65,187.84,187.8,1.96269463]
[1761950145036,3.98947491,187.83,187.8,1.96269463]
[1761950145362,0.65,187.84,187.8,1.96269463]
[1761950145540,3.98909964,187.83,187.8,1.96269463]
[1761950145740,0.65,187.84,187.8,1.96269463]
[1761950145943,3.98909925,187.83,187.8,1.96269463]
[1761950146141,0.65,187.84,187.8,1.96269463]
[1761950146472,3.98863446,187.83,187.8,1.96269463]
[1761950146649,0.65,187.84,187.79,68.64772765]
[1761950146856,4.63863446,187.83,187.79,68.64772765]
[1761950147062,0.65,187.83,187.79,66.00503302]
[1761950147357,0.65,187.82,187.79,66.00503302]
[1761950148051,0.65,187.82,187.79,60.68]
[1761950148857,0.65,187.82,187.78,60.68]
[1761950149364,0.65,187.82,187.78,66.00532012]
[1761950150158,0.65,187.82,187.78,60.68]
[1761950154978,2.61269463,187.82,187.76,67.96856025]
[1761950155160,1.96269463,187.81,187.76,66.00586562]
[1761950155361,2.65269463,187.81,187.76,5.32586562]
[1761950155670,0.69,187.8,187.76,5.32586562]
[1761950157771,0.69,187.8,187.75,5.32623169]
[1761950157970,0.69,187.8,187.75,7.28892632]
[1761950158468,2.65269463,187.8,187.75,5.32623169]
[1761950158870,2.65269463,187.8,187.74,7.28912882]
[1761950159072,0.69,187.79,187.74,7.28912882]
[1761950160071,2.65269463,187.79,187.74,5.32643419]
[1761950160260,2.65269463,187.79,187.72,66.6769227]
[1761950160463,0.69,187.78,187.73,1.96269463]
[1761950160658,0.69,187.78,187.73,2.63269463]
[1761950160858,0.69,187.78,187.73,7.95927058]
[1761950161780,0.69,187.78,187.73,1.96269463]
[1761950162977,0.69,187.78,187.72,5.32707075]
[1761950162978,2.65269463,187.78,187.72,7.28976538]
[1761950163376,0.69,187.77,187.72,7.28976538]
[1761950164162,0.69,187.77,187.72,7.95976538]
[1761950164378,1.96269463,187.75,187.7,66.00741977]
[1761950164880,1.96269463,187.73,187.67,2.83269463]
[1761950165263,0.69,187.72,187.68,5.32816119]
[1761950168859,1.96269463,187.71,187.67,5.52843161]
[1761950169061,1.96269463,187.71,187.67,0.2]
[1761950169258,0.69,187.7,187.67,0.2]
[1761950169673,2.65269463,187.7,187.67,0.2]
[1761950170073,0.69,187.69,187.67,0.2]
[1761950172378,0.69,187.69,187.67,5.52816119]
[1761950172969,2.65269463,187.69,187.67,5.52816119]
[1761950173465,0.69,187.68,187.67,5.52816119]
[1761950176587,2.65269463,187.68,187.67,5.52816119]
[1761950176784,2.65269463,187.68,187.67,0.2]
[1761950176983,0.69,187.73,187.67,8.16113378]
[1761950177182,0.69,187.73,187.7,1.96269463]
[1761950178669,0.69,187.73,187.71,5.32775465]
[1761950185590,3.76148339,187.73,187.71,5.32775465]
[1761950185785,3.07148339,187.72,187.69,60.68]
[1761950186105,3.75148339,187.72,187.69,76.69836772]
[1761950186285,0.68,187.71,187.69,76.69836772]
[1761950186506,3.07148339,187.7,187.69,60.68]
[1761950186889,3.75148339,187.7,187.67,16.21922306]
[1761950187090,0.68,187.69,187.67,0.2]
[1761950187292,0.68,187.69,187.68,8.39804292]
[1761950190006,0.68,187.69,187.67,0.2]
[1761950190186,0.68,187.69,187.67,8.59804292]
[1761950190586,30.38082769,187.75,187.67,8.59804292]
[1761950190899,4.64934695,187.74,187.7,3.07148339]
[1761950191315,0.68,187.73,187.7,3.07148339]
[1761950191480,0.68,187.73,187.69,19.08985111]
[1761950191888,0.68,187.73,187.7,3.07148339]
[1761950192107,0.68,187.73,187.7,19.08814071]
[1761950192512,0.68,187.73,187.7,16.01665732]
[1761950194309,21.272,187.73,187.7,16.01665732]
[1761950194488,21.272,187.73,187.68,3.07148339]
[1761950194687,0.68,187.72,187.69,16.01665732]
[1761950196196,0.68,187.72,187.69,76.69665732]
[1761950197025,0.68,187.72,187.69,60.68]
[1761950197330,0.68,187.72,187.7,16.01665732]
[1761950200087,4.65945853,187.72,187.7,16.01665732]
[1761950201108,0.68,187.72,187.7,16.01665732]
[1761950202222,3.98315361,187.71,187.7,16.01665732]
[1761950203127,7.734637,187.71,187.7,16.01665732]
[1761950203430,7.734637,187.71,187.69,60.68]
[1761950203628,7.73681504,187.7,187.69,60.68]
[1761950205117,4.66533165,187.7,187.69,60.68]
[1761950206230,3.98533165,187.7,187.69,60.68]
[1761950206943,4.66533165,187.7,187.69,60.68]
[1761950207134,3.98533165,187.7,187.69,60.68]
[1761950207333,4.66533165,187.7,187.69,60.68]
[1761950207531,3.98533165,187.7,187.69,60.68]
[1761950208041,3.98533165,187.7,187.67,69.95981208]
[1761950208228,3.98533165,187.69,187.67,69.95981208]
[1761950208422,0.68,187.71,187.67,69.95981208]
[1761950208622,3.99192956,187.7,187.68,0.68]
[1761950208823,0.68,187.77,187.69,3.07148339]
[1761950209026,3.59251282,187.78,187.69,3.07148339]
[1761950209027,3.99152096,187.76,187.74,3.07148339]
[1761950209227,3.99152096,187.75,187.71,18.64578338]
[1761950209433,0.68,187.79,187.72,0.68]
[1761950209434,3.99152096,187.74,187.72,0.68]